[Event "Pan-American Youth Championships 2024"]
[Site "Chess.com"]
[Date "2024.07.16"]
[Round "02"]
[White "Palathingal, Rafael"]
[Black "Schaefer, Sasha Milo"]
[Result "1/2-1/2"]
[WhiteElo "1843"]
[BlackElo "1760"]
[TimeControl "5400+30"]
[WhiteUrl ""]
[WhiteCountry ""]
[WhiteTitle ""]
[BlackUrl ""]
[BlackCountry ""]
[BlackTitle ""]

1. d4 {[%clk 1:29:25]} 1... d5 {[%clk 1:30:58]} 2. c4 {[%clk 1:29:14]} 2... e6
{[%clk 1:31:27]} 3. Nc3 {[%clk 1:28:58]} 3... Nf6 {[%clk 1:31:54]} 4. Nf3 {[%clk
1:29:01]} 4... a6 {[%clk 1:32:21]} 5. cxd5 {[%clk 1:29:02] This is the main line
of the Janowski variation in the Queen's Gambit Declined.} 5... exd5 {[%clk
1:32:48]} 6. Bg5 {[%clk 1:29:10]} 6... Be6 {[%clk 1:33:15] This is part of
black's plan in the Janowski Variation.} 7. e3 {[%clk 1:29:28]} 7... Nbd7 {[%clk
1:33:11]} 8. Be2?! {[%clk 1:26:41][%c_effect
e2;square;e2;type;Inaccuracy;persistent;true] This move is slightly dubious, but
I didn't know that at the time, so I played it.} 8... Bd6 {[%clk 1:33:32]} 9.
O-O {[%clk 1:26:09]} 9... c6 {[%clk 1:30:12]} 10. e4 {[%clk 1:22:35] I spent 4
minutes on this bad move because I thought I was opening the position, but the
game ended in a draw 13 moves later because of my IQ} 10... dxe4 {[%clk
1:30:08]} 11. Nxe4 {[%clk 1:22:47]} 11... Be7 {[%clk 1:29:40]} 12. Nc3 {[%clk
1:22:15]} 12... O-O {[%clk 1:28:30]} 13. Qc2 {[%clk 1:18:24]} 13... Nb6 {[%clk
1:23:35]} 14. Rad1 {[%clk 1:17:20]} 14... Nfd5 {[%clk 1:22:31]} 15. Nxd5 {[%clk
1:16:07]} 15... Nxd5 {[%clk 1:22:16]} 16. Bxe7 {[%clk 1:16:10]} 16... Qxe7
{[%clk 1:21:49]} 17. a3 {[%clk 1:14:47]} 17... Bg4 {[%clk 1:15:55]} 18. Rfe1
{[%clk 1:11:08]} 18... Bxf3 {[%clk 1:15:04]} 19. Bxf3 {[%clk 1:10:52]} 19... Qd6
{[%clk 1:11:19]} 20. Qb3 {[%clk 1:07:25]} 20... b5 {[%clk 1:01:18]} 21. Bxd5
{[%clk 1:07:17]} 21... cxd5 {[%clk 0:58:08]} 22. Re5 {[%clk 1:01:15]} 22... Rfd8
{[%clk 0:55:28]} 23. g3 {[%clk 1:01:36][%c_effect
g8;square;g8;type;DrawBlack,g1;square;g1;type;DrawWhite]} 1/2-1/2

[Event "Pan-American Youth Championships 2024"]
[Site "Chess.com"]
[Date "2024.07.18"]
[Round "06"]
[White "Palathingal, Rafael"]
[Black "Mulay, Vivan Prakash"]
[Result "1/2-1/2"]
[WhiteElo "1843"]
[BlackElo "1777"]
[TimeControl "5400+30"]

1. d4 {[%clk 1:30:58]} 1... d5 {[%clk 1:31:00]} 2. c4 {[%clk 1:31:17]} 2... c6
{[%clk 1:31:29]} 3. Nf3 {[%clk 1:31:41]} 3... Nf6 {[%clk 1:31:59]} 4. Nc3 {[%clk
1:31:58]} 4... e6 {[%clk 1:32:29]} 5. cxd5 {[%clk 1:31:41]} 5... exd5 {[%clk
1:32:57]} 6. Bg5 {[%clk 1:31:03]} 6... Nbd7 {[%clk 1:32:43]} 7. e3 {[%clk
1:30:45]} 7... Be7 {[%clk 1:31:54]} 8. Be2 {[%clk 1:30:14]} 8... h6 {[%clk
1:30:43]} 9. Bh4 {[%clk 1:30:39]} 9... O-O {[%clk 1:30:01]} 10. O-O {[%clk
1:31:07]} 10... Re8 {[%clk 1:25:51]} 11. Qc2 {[%clk 1:29:32]} 11... Nf8 {[%clk
1:14:43]} 12. Rab1 {[%clk 1:27:13]} 12... Ng6 {[%clk 1:12:15]} 13. Bg3 {[%clk
1:27:13]} 13... a5 {[%clk 1:10:14]} 14. a4 {[%clk 1:26:19]} 14... Bd6 {[%clk
1:07:17]} 15. Bxd6 {[%clk 1:26:34]} 15... Qxd6 {[%clk 1:05:05]} 16. Bd3 {[%clk
1:26:21]} 16... Bg4 {[%clk 1:04:06]} 17. Bxg6 {[%clk 1:21:42]} 17... fxg6 {[%clk
0:59:08]} 18. Qxg6 {[%clk 1:20:26]} 18... Bxf3 {[%clk 0:54:16]} 19. gxf3 {[%clk
1:20:48]} 19... Re6 {[%clk 0:51:31]} 20. Qg3 {[%clk 1:20:30]} 20... Qe7 {[%clk
0:49:29]} 21. Kh1 {[%clk 1:20:13]} 21... Rf8 {[%clk 0:49:07]} 22. Rg1 {[%clk
1:18:03]} 22... Qf7 {[%clk 0:46:44]} 23. Qh3 {[%clk 1:16:48]} 23... Nh7 {[%clk
0:46:21]} 24. f4 {[%clk 1:16:35]} 24... Rg6 {[%clk 0:44:33]} 25. Rxg6 {[%clk
1:10:46]} 25... Qxg6 {[%clk 0:45:01]} 26. Rg1 {[%clk 1:10:40]} 26... Qc2 {[%clk
0:44:24]} 27. Qg4 {[%clk 1:05:24]} 27... Rf7 {[%clk 0:42:58]} 28. Qe2 {[%clk
1:05:35]} 28... Qf5 {[%clk 0:41:23]} 29. Qg4 {[%clk 1:05:38]} 29... Qc2 {[%clk
0:41:48]} 30. Qe2 {[%clk 1:06:03]} 30... Qf5 {[%clk 0:42:13]} 31. Qg4 {[%clk
1:03:23]} 31... Qc2 {[%clk 0:42:38]} 1/2-1/2

[Event "Pan-American Youth Championships 2024"]
[Site "Chess.com"]
[Date "2024.07.19"]
[Round "07"]
[White "Palathingal, Rafael"]
[Black "Jasinski, Alexander"]
[Result "1-0"]
[WhiteElo "1843"]
[BlackElo "2021"]
[TimeControl "5400+30"]
[WhiteUrl ""]
[WhiteCountry ""]
[WhiteTitle ""]
[BlackUrl ""]
[BlackCountry ""]
[BlackTitle ""]

1. d4 {[%clk 1:27:48]} 1... Nf6 {[%clk 1:30:51]} 2. Nf3 {[%clk 1:28:04]} 2... g6
{[%clk 1:31:13]} 3. c4 {[%clk 1:27:44]} 3... Bg7 {[%clk 1:31:26] This is the KID
(King's Indian Defense).} 4. Nc3 {[%clk 1:27:48]} 4... O-O {[%clk 1:31:38]} 5.
e4 {[%clk 1:28:11]} 5... d6 {[%clk 1:31:32]} 6. Be2 {[%clk 1:28:33]} 6... e5
{[%clk 1:31:35]} 7. d5 {[%clk 1:29:00]} 7... a5 {[%clk 1:31:04]} 8. O-O {[%clk
1:29:22]} 8... Ne8?! {[%clk 1:26:47][%c_effect
e8;square;e8;type;Inaccuracy;persistent;true] This is not a theoretical line, so
I had to figure out what to do move by move which wasn't that hard.} 9. Bg5
{[%clk 1:23:46]} 9... Qd7?! {[%clk 1:14:03][%c_effect
d7;square;d7;type;Inaccuracy;persistent;true] This dubious move allows a very
cool pawn sacrifice.} (9... f6 {This is the best move and here I would go} 10.
Be3 f5 11. Bg5 Qd7 12. exf5 gxf5 13. Nd2 {Now I will go f4 and give black a
protected passed pawn in return for better development.}) 10. c5! {[%clk
1:21:40][%c_effect c5;square;c5;type;GreatFind;persistent;true] The top move of
the engine with a +0.67 advantage and this is why.} 10... dxc5 {[%clk 1:00:09]}
11. Bb5 {[%clk 1:16:16]} 11... Qd6 {[%clk 0:46:59]} (11... c6! {[%c_effect
c6;square;c6;type;GreatFind;persistent;true] This move is the best move for two
reasons. First, it forces a queen trade if white wants to keep his advantage.
Second, it's pressurizing the important pawn on d5 making it easier to attack.
Here is the line that I had seen during the game.} 12. dxc6 bxc6 13. Qxd7 Bxd7
14. Bd3 {and white is bound to win one of black's pawns.} 14... Nc7 15. Be7 Re8
16. Bxc5 {[%c_highlight
c5;keyPressed;none;opacity;0.8;square;c5;persistent;false] With a very small
advantage.}) 12. Nd2 {[%clk 1:12:38]} 12... f6 {[%clk 0:43:24]} 13. Be3 {[%clk
1:12:43]} 13... Bd7? {[%clk 0:24:55][%c_effect
d7;square;d7;type;Mistake;persistent;true] See how quickly the evaluation
changes, 3 moves ago the evaluation was +0.40 and now it is +1.12 so the
evaluation has increased by 0.72 which shows how hard it is for even a 2000
player to play this position.} 14. Qb3! {[%clk 1:08:20][%c_effect
b3;square;b3;type;GreatFind;persistent;true] I'm bringing the queen and
constantly making threats (The threat as of now is Bxd7.) which gives the
opponent almost no time to consolidate  and win the game with his extra pawn.}
14... Bxb5 {[%clk 0:20:29]} 15. Nxb5 {[%clk 1:08:41]} 15... Qd7?! {[%clk
0:20:46][%c_effect d7;square;d7;type;Inaccuracy;persistent;true] Critical
moment! Find the top computer move (I found the 2nd best move and got only a
+0.57 advantage, but if I found the top computer move, I would have a +1.62
advantage.} 16. Bxc5 {[%clk 1:06:00]} (16. a4 {The pawn on c5 isn't that
important anyway.} 16... Na6 17. f4 b6 18. Nc4 exf4 19. Bxf4 Qf7 20. Rad1 Rd8
21. Bg5 {[%cal dg5f6][%c_arrow
g5f6;keyPressed;none;from;g5;opacity;0.8;to;f6;persistent;false][%c_highlight
f6;keyPressed;none;opacity;0.8;square;f6;persistent;false,e4;keyPressed;none;opacity;0.8;square;e4;persistent;false,d5;keyPressed;none;opacity;0.8;square;d5;persistent;false,c4;keyPressed;none;opacity;0.8;square;c4;persistent;false,b5;keyPressed;none;opacity;0.8;square;b5;persistent;false]
With a dominating position.}) 16... Nd6 {[%clk 0:21:05]} (16... a4 17. Qc4 Nd6
18. Nxd6 cxd6 19. Be3 Na6 {[%c_highlight
a6;keyPressed;none;opacity;0.8;square;a6;persistent;false] Black can probably
survive this position because white's advantage is only +0.58.}) 17. Nxd6 {[%clk
1:02:19]} 17... cxd6 {[%clk 0:21:17]} 18. Be3 {[%clk 1:02:15]} 18... b5 {[%clk
0:18:41]} 19. Rac1 {[%clk 1:00:28]} 19... Na6 {[%clk 0:14:30]} 20. Rc6 {[%clk
0:59:12]} 20... Nb4 {[%clk 0:12:54] Critical Moment! Find the top two computer
moves which give an advantage of +2.64 and 2.35. (I found the fifth computer
move which gave me only a +1.50 advantage.)} 21. Rcc1?! {[%clk
0:59:24][%c_effect c1;square;c1;type;Inaccuracy;persistent;true] Now the
evaluation is +1.51} (21. a3 {This is the top move.} 21... Nxc6 22. dxc6+ Qf7
23. Qxb5 {[%c_highlight
b5;keyPressed;none;opacity;0.8;square;b5;persistent;false,c6;keyPressed;none;opacity;0.8;square;c6;persistent;false,g4;keyPressed;none;opacity;0.8;square;g4;persistent;false][%cal
dg5g4][%c_arrow g5g4;keyPressed;none;from;g5;opacity;0.8;to;g4;persistent;false]
White is much better due to the passed c6 pawn and the extra space for his
pieces.} 23... f5 24. Nc4) (21. Rfc1 {This is the second best move. Also an
exchange sacrifice!} 21... Rfb8 (21... Nxc6 22. dxc6+ Qf7 23. Qxb5 f5 24. Nc4 f4
25. Bb6 {White has a huge advantage of +3.63 here.}) 22. a3 Na6 23. Bb6 Bh6 24.
R1c2 f5 25. exf5 Qxf5 26. Nf1 a4 27. Qxb5 Nc5 28. Qc4 Qd3 29. Rxd6 Qxc4 30. Rxc4
Nd3 31. Rdc6 {[%c_highlight
c6;keyPressed;none;opacity;0.8;square;c6;persistent;false] +2.97}) 21... Na6?!
{[%clk 0:12:47][%c_effect a6;square;a6;type;Inaccuracy;persistent;true] For some
reason he thinks I will take a draw in this position that is obviously better
for me.} 22. a3 {[%clk 0:58:17]} 22... Rfc8 {[%clk 0:12:25]} (22... a4 {This is
obviously the best move because now white can't attack the b5 pawn and black
takes some space.} 23. Qd3 Rfc8 {White is slightly better, but not enough to
convert.}) 23. Rc6 {[%clk 0:54:31]} 23... a4? {[%clk 0:11:16][%c_effect
a4;square;a4;type;Mistake;persistent;true] This is obviously bad.} (23... Rcb8
{and black still has a chance to survive.}) 24. Qxb5 {[%clk 0:53:03]} 24... Rcb8
{[%clk 0:10:59]} 25. Qc4 {[%clk 0:48:44]} 25... Nc5 {[%clk 0:09:44]} 26. Bxc5
{[%clk 0:47:47]} 26... dxc5 {[%clk 0:09:47]} 27. Qxc5 {[%clk 0:46:19]} 27...
Rxb2 {[%clk 0:10:05]} 28. Nc4 {[%clk 0:45:03]} 28... Bf8 {[%clk 0:10:01]} 29.
Qe3? {[%clk 0:44:26][%c_effect e3;square;e3;type;Mistake;persistent;true] Better
was} (29. d6 {I totally forgot I could play this crushing move.}) 29... Rb3
{[%clk 0:10:10]} 30. Qe2 {[%clk 0:44:22]} 30... Bxa3 {[%clk 0:08:23]} 31. Nb6
{[%clk 0:44:06]} 31... Rxb6 {[%clk 0:08:44]} 32. Rxb6 {[%clk 0:44:23]} 32... Bc5
{[%clk 0:09:05]} 33. Rc6 {[%clk 0:44:06]} 33... Bd4 {[%clk 0:09:17]} 34. Ra6
{[%clk 0:42:50]} 34... Rb8 {[%clk 0:05:45]} 35. Qc4 {[%clk 0:42:43]} 35... Qg4
{[%clk 0:05:19]} 36. d6+ {[%clk 0:41:26]} 36... Kh8 {[%clk 0:05:22]} 37. Qc7
{[%clk 0:41:36]} 37... Bxf2+ {[%clk 0:04:29]} 38. Kh1! {[%clk 0:41:13][%c_effect
h1;square;h1;type;GreatFind;persistent;true] This is the only move to win the
game.} (38. Rxf2? {[%c_effect f2;square;f2;type;Mistake;persistent;true] Be
careful, you just blundered perpetual.} 38... Rb1+ 39. Rf1 Rxf1+ 40. Kxf1 Qd1+
41. Kf2 Qd2+ 42. Kf3 Qd3+ 43. Kf2 Qd2+ 44. Kg3 Qe3+ 45. Kh4 Qg5+ 46. Kh3 Qe3+
47. g3 Qh6+ 48. Kg2 Qd2+ 49. Kf1 Qd1+ 50. Kf2 Qd2+ 51. Kf1 Qd1+ 52. Kf2 Qd2+
{1/2-1/2}) 38... Rc8 {[%clk 0:04:18]} 39. d7! {[%clk 0:41:00][%c_effect
d7;square;d7;type;GreatFind;persistent;true] This is a very stylish approach to
winning the game.} 39... Rxc7 {[%clk 0:04:21]} 40. d8=Q+ {[%clk 0:41:17]} 40...
Kg7 {[%clk 0:04:45]} 41. Qxc7+ {[%clk 0:41:40]} 41... Kh6 {[%clk 0:05:13]} 42.
Qc1+ {[%clk 0:41:33]} 42... g5 {[%clk 0:05:38]} 43. Rxf2 {[%clk 0:41:29]} 43...
a3 {[%clk 0:06:05]} 44. Raxf6+ {[%clk 0:41:32]} 44... Kh5 {[%clk 0:06:32]} 45.
h3 {[%clk 0:41:55]} 45... Qxg2+ {[%clk 0:06:56]} 46. Kxg2 {[%clk 0:42:06]} 46...
a2 {[%clk 0:07:25]} 47. Qd1+ {[%clk 0:42:31]} 47... g4 {[%clk 0:07:52]} 48.
Qxg4# {[%clk 0:42:56][%c_effect
g2;square;g2;type;Winner,h5;square;h5;type;CheckmateBlack] This was a nice win
against the top seed in my section.} 1-0

[Event "Pan-American Youth Championships 2024"]
[Site "Chess.com"]
[Date "2024.07.19"]
[Round "08"]
[White "Jani, Aakash"]
[Black "Palathingal, Rafael"]
[Result "1/2-1/2"]
[WhiteElo "1873"]
[BlackElo "1843"]
[TimeControl "5400+30"]

1. e4 {[%clk 1:30:57]} 1... e5 {[%clk 1:30:57]} 2. Nf3 {[%clk 1:31:19]} 2... Nc6
{[%clk 1:31:25]} 3. Nc3 {[%clk 1:31:36]} 3... Nf6 {[%clk 1:31:49]} 4. a3 {[%clk
1:31:34]} 4... Bc5 {[%clk 1:31:43]} 5. Nxe5 {[%clk 1:31:29]} 5... Nxe5 {[%clk
1:31:52]} 6. d4 {[%clk 1:31:18]} 6... Bd6 {[%clk 1:31:53]} 7. f4 {[%clk
1:31:13]} 7... Nc6 {[%clk 1:30:51]} 8. e5 {[%clk 1:31:24]} 8... Qe7 {[%clk
1:29:44]} 9. Be2 {[%clk 1:29:49]} 9... O-O {[%clk 1:26:04]} 10. O-O {[%clk
1:26:07]} 10... Nxd4 {[%clk 1:25:10]} 11. exd6 {[%clk 1:24:28]} 11... Nxe2+
{[%clk 1:24:10]} 12. Nxe2 {[%clk 1:24:40]} 12... cxd6 {[%clk 1:21:11]} 13. Nc3
{[%clk 1:19:46]} 13... d5 {[%clk 1:20:36]} 14. Nxd5 {[%clk 1:18:56]} 14... Qc5+
{[%clk 1:20:47]} 15. Ne3 {[%clk 1:18:44]} 15... d5 {[%clk 1:21:07]} 16. c3
{[%clk 1:14:18]} 16... Bg4 {[%clk 1:21:31]} 17. Qd4 {[%clk 1:06:05]} 17... Qxd4
{[%clk 1:21:40]} 18. cxd4 {[%clk 1:06:29]} 18... Be2 {[%clk 1:21:18]} 19. Re1
{[%clk 1:03:03][%c_effect
g8;square;g8;type;DrawBlack,g1;square;g1;type;DrawWhite]} 1/2-1/2

[Event "Pan-American Youth Championships 2024"]
[Site "Chess.com"]
[Date "2024.07.20"]
[Round "09"]
[White "Palathingal, Rafael"]
[Black "Debmisra, Ariv"]
[Result "1-0"]
[WhiteElo "1843"]
[BlackElo "1828"]
[TimeControl "5400+30"]

1. d4 {[%clk 1:30:57]} 1... Nf6 {[%clk 1:30:52]} 2. c4 {[%clk 1:31:18]} 2... e6
{[%clk 1:31:18]} 3. Nf3 {[%clk 1:31:45]} 3... Bb4+ {[%clk 1:31:44]} 4. Bd2
{[%clk 1:32:10]} 4... Qe7 {[%clk 1:32:06]} 5. g3 {[%clk 1:32:23]} 5... O-O
{[%clk 1:32:25]} 6. Bg2 {[%clk 1:32:39]} 6... Nc6 {[%clk 1:32:39]} 7. O-O {[%clk
1:32:12]} 7... Bxd2 {[%clk 1:32:50]} 8. Nbxd2 {[%clk 1:32:28]} 8... d6 {[%clk
1:33:05]} 9. e4 {[%clk 1:32:04]} 9... e5 {[%clk 1:33:13]} 10. d5 {[%clk
1:32:27]} 10... Nb8 {[%clk 1:33:36]} 11. Qc2 {[%clk 1:32:21]} 11... a5 {[%clk
1:33:01]} 12. b3 {[%clk 1:30:18]} 12... Na6 {[%clk 1:33:07]} 13. a3 {[%clk
1:30:29]} 13... Bd7 {[%clk 1:32:27]} 14. Rab1 {[%clk 1:29:16]} 14... Nh5 {[%clk
1:30:19]} 15. Qd1 {[%clk 1:27:57]} 15... g6 {[%clk 1:29:34]} 16. b4 {[%clk
1:26:35]} 16... axb4 {[%clk 1:20:25]} 17. axb4 {[%clk 1:25:26]} 17... f5 {[%clk
1:11:38]} 18. Qc2 {[%clk 1:25:00]} 18... b6 {[%clk 1:04:52]} 19. Rfc1 {[%clk
1:15:43]} 19... f4 {[%clk 1:02:17]} 20. Nf1 {[%clk 1:12:30]} 20... g5 {[%clk
1:00:45]} 21. h3 {[%clk 1:08:48]} 21... fxg3 {[%clk 0:41:26]} 22. fxg3 {[%clk
1:09:05]} 22... Qf6 {[%clk 0:40:49]} 23. Qc3 {[%clk 1:04:00]} 23... Qg6 {[%clk
0:34:41]} 24. c5 {[%clk 1:02:37]} 24... Bb5 {[%clk 0:24:13]} 25. Kh2 {[%clk
0:59:31]} 25... g4 {[%clk 0:13:02]} 26. Nh4 {[%clk 0:59:22]} 26... Qg5 {[%clk
0:12:24]} 27. cxd6 {[%clk 0:52:58]} 27... gxh3 {[%clk 0:09:24]} 28. Bxh3 {[%clk
0:49:55]} 28... cxd6 {[%clk 0:07:02]} 29. Be6+ {[%clk 0:49:34]} 29... Kh8 {[%clk
0:07:20]} 30. Nf5 {[%clk 0:49:47]} 30... Ng7 {[%clk 0:07:34]} 31. Qd2 {[%clk
0:44:04]} 31... Qh5+ {[%clk 0:04:42]} 32. Kg2 {[%clk 0:43:52]} 32... Nxf5 {[%clk
0:04:38]} 33. exf5 {[%clk 0:43:38]} 33... Rxf5 {[%clk 0:03:56]} 34. Bxf5 {[%clk
0:43:21]} 34... Qxf5 {[%clk 0:04:24]} 35. Qf2 {[%clk 0:42:23]} 35... Bd3 {[%clk
0:04:32]} 36. Qxf5 {[%clk 0:39:41]} 36... Bxf5 {[%clk 0:05:01]} 37. Rb2 {[%clk
0:36:16]} 37... Rc8 {[%clk 0:04:27]} 38. Rc6 {[%clk 0:33:34]} 38... Rxc6 {[%clk
0:03:49]} 39. dxc6 {[%clk 0:32:06]} 39... Be4+ {[%clk 0:04:12]} 40. Kf2 {[%clk
0:32:06]} 40... Nc7 {[%clk 0:03:01]} 41. Ra2 {[%clk 0:30:26]} 41... Nb5 {[%clk
0:01:54]} 42. Ra8+ {[%clk 0:30:41]} 42... Kg7 {[%clk 0:02:18]} 43. c7 {[%clk
0:31:05][%c_effect f2;square;f2;type;Winner]} 1-0